fUST/lending_fUST_20260209
["ID","MTS","AMOUNT","RATE_DAILY","PERIOD"]
[404875098,1770641710459,-1143.37,0.00050958,120]
[404875099,1770641710485,-310.933746,0.00050958,120]
[404875100,1770641710512,-1831.42,0.00050958,120]
[404875101,1770641710537,-211.95631157,0.0005099,90]
[404875102,1770641710564,-2000.0,0.00051,120]
[404875103,1770641710593,-1000.0,0.00051,120]
[404875104,1770641710623,-5169.78480705,0.00051,120]
[404875105,1770641710651,-6803.08,0.00051032,30]
[404875106,1770641710680,-746.61,0.00051164,120]
[404875107,1770641710707,-151.0,0.00051232,30]
[404875108,1770641710734,-500.0,0.00051232,120]
[404875109,1770641710763,-500.0,0.00051232,120]
[404875110,1770641710788,-500.0,0.00051232,120]
[404875111,1770641710814,-500.0,0.00051232,53]
[404875112,1770641710840,-797.77,0.00051232,120]
[404875113,1770641710866,-3252.37,0.00051232,120]
[404875114,1770641710892,-2953.2,0.00051232,120]
[404875115,1770641710919,-500.0,0.00051232,120]
[404875116,1770641710947,-500.0,0.00051232,120]
[404875117,1770641710973,-1711.02,0.00051232,120]
[404875118,1770641710999,-880.16,0.00051232,120]
[404875119,1770641711025,-500.0,0.00051232,120]
[404875120,1770641711049,-546.05,0.00051232,120]
[404875121,1770641711075,-500.0,0.00051232,120]
[404875122,1770641711101,-2373.41,0.00051232,30]
[404875123,1770641711127,-500.0,0.00051232,120]
[404875124,1770641711153,-802.85,0.00051232,120]
[404875125,1770641711182,-500.0,0.00051232,120]
[404875126,1770641711209,-550.28,0.00051232,120]
[404875127,1770641711236,-500.0,0.00051232,120]
[404875128,1770641711266,-500.0,0.00051232,120]
[404875129,1770641711293,-859.94,0.00051232,120]
[404875130,1770641711323,-500.0,0.00051232,120]
[404875131,1770641711352,-500.0,0.00051232,120]
[404875132,1770641711381,-500.0,0.00051232,120]
[404875133,1770641711411,-500.0,0.00051232,120]
[404875134,1770641711437,-500.0,0.00051232,120]
[404875135,1770641711464,-500.0,0.00051232,120]
[404875136,1770641711490,-500.0,0.00051232,120]
[404875137,1770641711516,-509.28630087,0.00051232,120]
[404875138,1770641711544,-500.0,0.00051232,30]
[404875139,1770641711572,-500.0,0.00051232,120]
[404875140,1770641711598,-620.66,0.00051232,120]
[404875141,1770641711626,-741.78,0.00051232,30]
[404875142,1770641711653,-1130.86,0.00051232,120]
[404875143,1770641711679,-1559.72,0.00051232,120]
[404875144,1770641711705,-1729.14,0.00051232,30]
[404875145,1770641711735,-500.0,0.00051232,120]
[404875146,1770641711761,-500.0,0.00051232,120]
[404875147,1770641711787,-500.0,0.00051232,120]
[404875148,1770641711813,-500.0,0.00051232,120]
[404875149,1770641711840,-587.87,0.00051232,120]
[404875150,1770641711866,-500.0,0.00051232,120]
[404875151,1770641711892,-400.04043899,0.00051232,120]
[404875152,1770641711996,-1641.02,0.00051232,120]
[404875153,1770641712040,-2168.92,0.00051232,120]
[404875154,1770641712071,-7495.28,0.00051232,120]
[404875155,1770641712098,-13103.2,0.00051232,90]
[404875156,1770641712126,-1247.11,0.00051232,120]
[404875157,1770641712154,-5684.5,0.00051232,120]
[404875158,1770641712182,-500.0,0.00051232,120]
[404875159,1770641712208,-2989.03,0.00051232,120]
[404875160,1770641712243,-1565.16,0.00051232,120]
[404875161,1770641712269,-1143.37,0.00051232,120]
[404875162,1770641712298,-1831.42,0.00051232,120]
[404875163,1770641712328,-327.87058193,0.00051243,120]
[404875164,1770641712357,-200.0,0.00051344,120]
[404875165,1770641712385,-151.40915451,0.00051369,60]
[404875166,1770641712410,-151.39402418,0.00051443,60]
[404875167,1770641712437,-50000.0,0.000515,90]
[404875168,1770641712464,-6000.0,0.000515,120]
[404875169,1770641712491,-500.0,0.00051506,120]
[404875170,1770641712516,-500.0,0.00051506,120]
[404875171,1770641712543,-418.40111973,0.00051506,120]
[404875172,1770641712568,-500.0,0.00051506,53]
[404875173,1770641712594,-797.77,0.00051506,120]
[404875174,1770641712620,-3252.37,0.00051506,120]
[404875175,1770641712646,-2953.2,0.00051506,120]
[404875176,1770641712671,-500.0,0.00051506,120]
[404875177,1770641712696,-500.0,0.00051506,120]
[404875178,1770641712725,-1711.02,0.00051506,120]
[404875179,1770641712754,-880.16,0.00051506,120]
[404875180,1770641712780,-500.0,0.00051506,120]
[404875181,1770641712807,-546.05,0.00051506,120]
[404875182,1770641712833,-500.0,0.00051506,120]
[404875183,1770641712859,-2373.41,0.00051506,30]
[404875184,1770641712884,-500.0,0.00051506,120]
[404875185,1770641712913,-565.79,0.00051506,36]
[404875186,1770641712943,-802.85,0.00051506,120]
[404875187,1770641712969,-500.0,0.00051506,120]
[404875188,1770641712995,-550.28,0.00051506,120]
[404875189,1770641713020,-257.04341605,0.00051506,120]
[404875190,1770641713046,-525.28844931,0.00051506,120]
[404875191,1770641713071,-859.94,0.00051506,120]
[404875192,1770641713097,-553.30105514,0.00051506,120]
[404875193,1770641713124,-500.0,0.00051506,120]
[404875194,1770641713152,-500.0,0.00051506,120]
[404875195,1770641713178,-500.0,0.00051506,120]
[404875196,1770641713206,-500.0,0.00051506,120]
[404875197,1770641713237,-500.0,0.00051506,120]
[404875198,1770641713265,-513.21700504,0.00051506,120]
[404875199,1770641713297,-500.0,0.00051506,30]
[404875200,1770641713331,-500.0,0.00051506,120]
[404875201,1770641713359,-620.66,0.00051506,120]
[404875202,1770641713388,-741.78,0.00051506,30]
[404875203,1770641713415,-1130.86,0.00051506,120]
[404875204,1770641713445,-1559.72,0.00051506,120]
[404875205,1770641713473,-1729.14,0.00051506,30]
[404875206,1770641713500,-500.0,0.00051506,120]
[404875207,1770641713529,-503.167425,0.00051506,120]
[404875208,1770641713557,-500.0,0.00051506,120]
[404875209,1770641713583,-500.0,0.00051506,120]
[404875210,1770641713610,-587.87,0.00051506,120]
[404875211,1770641713642,-500.0,0.00051506,120]
[404875212,1770641713671,-1641.02,0.00051506,120]
[404875213,1770641713697,-2168.92,0.00051506,120]
[404875214,1770641713727,-7495.28,0.00051506,120]
[404875215,1770641713754,-13103.2,0.00051506,90]
[404875216,1770641713781,-1247.11,0.00051506,120]
[404875217,1770641713808,-5684.5,0.00051506,120]
[404875218,1770641713836,-500.0,0.00051506,120]
[404875219,1770641713864,-2989.03,0.00051506,120]
[404875220,1770641713891,-1565.16,0.00051506,120]
[404875221,1770641713918,-1143.37,0.00051506,120]
[404875222,1770641713946,-1831.42,0.00051506,120]
[404875223,1770641713973,-1046.0,0.00051507,120]
[404875224,1770641714001,-153.0,0.000516,120]
[404875225,1770641714029,-151.39402418,0.00051639,60]
[404875226,1770641714060,-746.61,0.00051762,120]
[404875227,1770641714087,-500.0,0.0005178,120]
[404875228,1770641714113,-500.0,0.0005178,120]
[404875229,1770641714231,-544.41204124,0.0005178,53]
[404875230,1770641714259,-797.77,0.0005178,120]
[404875231,1770641714286,-3252.37,0.0005178,120]
[404875232,1770641714318,-2953.2,0.0005178,120]
[404875233,1770641714344,-500.0,0.0005178,120]
[404875234,1770641714371,-501.96212254,0.0005178,120]
[404875235,1770641714398,-1711.02,0.0005178,120]
[404875236,1770641714427,-880.16,0.0005178,120]
[404875237,1770641714456,-500.0,0.0005178,120]
[404875238,1770641714483,-546.05,0.0005178,120]
[404875239,1770641714509,-500.0,0.0005178,120]
[404875240,1770641714535,-2373.41,0.0005178,30]
[404875241,1770641714561,-516.76501192,0.0005178,120]
[404875242,1770641714587,-802.85,0.0005178,120]
[404875243,1770641714613,-500.0,0.0005178,120]
[404875244,1770641714639,-550.28,0.0005178,120]
[404875245,1770641714666,-859.94,0.0005178,120]
[404875246,1770641714694,-500.0,0.0005178,120]
[404875247,1770641714721,-500.0,0.0005178,120]
[404875248,1770641714748,-500.0,0.0005178,120]
[404875249,1770641714776,-525.13254905,0.0005178,120]
[404875250,1770641714803,-517.34208233,0.0005178,120]
[404875251,1770641714831,-295.16341296,0.0005178,30]
[404875252,1770641714860,-500.0,0.0005178,120]
[404875253,1770641714892,-620.66,0.0005178,120]
[404875254,1770641714921,-741.78,0.0005178,30]
[404875255,1770641714949,-1130.86,0.0005178,120]
[404875256,1770641714977,-1559.72,0.0005178,120]
[404875257,1770641715004,-1729.14,0.0005178,30]
[404875258,1770641715032,-528.02608688,0.0005178,120]
[404875259,1770641715059,-500.0,0.0005178,120]
[404875260,1770641715086,-500.0,0.0005178,120]
[404875261,1770641715114,-587.87,0.0005178,120]
[404875262,1770641715141,-500.0,0.0005178,120]
[404875263,1770641715170,-1641.02,0.0005178,120]
[404875264,1770641715197,-2168.92,0.0005178,120]
[404875265,1770641715231,-7495.28,0.0005178,120]
[404875266,1770641715258,-13103.2,0.0005178,90]
[404875267,1770641715286,-1247.11,0.0005178,120]
[404875268,1770641715315,-5684.5,0.0005178,120]
[404875269,1770641715342,-500.0,0.0005178,120]
[404875270,1770641715369,-2989.03,0.0005178,120]
[404875271,1770641715395,-1565.16,0.0005178,120]
[404875272,1770641715422,-1143.37,0.0005178,120]
[404875273,1770641715452,-1831.42,0.0005178,120]
[404875274,1770641715478,-225.22,0.000518,120]
[404875275,1770641715505,-80827.03782903,0.00051889,120]
[404875276,1770641715533,-23737.9,0.000519,120]
[404875277,1770641715561,-1483.33192062,0.00051949,71]
[404875278,1770641715587,-9999.99999901,0.0005198,120]
[404875279,1770641715615,-2000.0,0.00052,120]
[404875280,1770641715642,-5910.02486414,0.00052,120]
[404875281,1770641715668,-386.63639307,0.00052,120]
[404875282,1770641715700,-300.0,0.00052,120]
[404875283,1770641715728,-577.63222683,0.00052,120]
[404875284,1770641715757,-175.0,0.00052,120]
[404875285,1770641715783,-1018.8755921,0.00052,120]
[404875286,1770641715811,-20817.72883597,0.00052,120]
[404875287,1770641715838,-49438.0,0.00052,120]
[404875288,1770641715867,-4575.68087304,0.00052,30]
[404875289,1770641715896,-200.0,0.00052037,120]
[404875290,1770641715922,-500.0,0.00052054,120]
[404875291,1770641715951,-500.0,0.00052054,120]
[404875292,1770641715977,-797.77,0.00052054,120]
[404875293,1770641716008,-3252.37,0.00052054,120]
[404875294,1770641716035,-2953.2,0.00052054,120]
[404875295,1770641716061,-500.0,0.00052054,120]
[404875296,1770641716087,-1711.02,0.00052054,120]
[404875297,1770641716113,-880.16,0.00052054,120]
[404875298,1770641716141,-500.0,0.00052054,120]
[404875299,1770641716170,-546.05,0.00052054,120]
[404875300,1770641716197,-500.0,0.00052054,120]
[404875301,1770641716224,-2373.41,0.00052054,30]
[404875302,1770641716257,-802.85,0.00052054,120]
[404875303,1770641716374,-500.0,0.00052054,120]
[404875304,1770641716404,-550.28,0.00052054,120]
[404875305,1770641716431,-859.94,0.00052054,120]
[404875306,1770641716459,-388.40187784,0.00052054,120]
[404875307,1770641716486,-438.45399018,0.00052054,120]
[404875308,1770641716512,-500.0,0.00052054,120]
[404875309,1770641716538,-500.0,0.00052054,120]
[404875310,1770641716567,-620.66,0.00052054,120]
[404875311,1770641716595,-741.78,0.00052054,30]
[404875312,1770641716627,-1130.86,0.00052054,120]
[404875313,1770641716659,-1559.72,0.00052054,120]
[404875314,1770641716686,-1729.14,0.00052054,30]
[404875315,1770641716716,-500.0,0.00052054,120]
[404875316,1770641716744,-500.0,0.00052054,120]
[404875317,1770641716769,-587.87,0.00052054,120]
[404875318,1770641716795,-500.0,0.00052054,120]
[404875319,1770641716822,-235.70006905,0.00052054,120]
[404875320,1770641716848,-1641.02,0.00052054,120]
[404875321,1770641716875,-2168.92,0.00052054,120]
[404875322,1770641716907,-7495.28,0.00052054,120]
[404875323,1770641716934,-13103.2,0.00052054,90]
[404875324,1770641716961,-1247.11,0.00052054,120]
[404875325,1770641716988,-5684.5,0.00052054,120]
[404875326,1770641717015,-500.0,0.00052054,120]
[404875327,1770641717041,-2989.03,0.00052054,120]
[404875328,1770641717068,-1565.16,0.00052054,120]
[404875329,1770641717095,-1143.37,0.00052054,120]
[404875330,1770641717124,-1831.42,0.00052054,120]
[404875331,1770641717150,-200.0,0.000521,120]
[404875332,1770641717177,-565.79,0.00052191,39]
[404875333,1770641717203,-436.66854779,0.00052328,120]
[404875334,1770641717232,-500.0,0.00052328,120]
[404875335,1770641717262,-797.77,0.00052328,120]
[404875336,1770641717288,-3252.37,0.00052328,120]
[404875337,1770641717317,-2953.2,0.00052328,120]
[404875338,1770641717344,-500.0,0.00052328,120]
[404875339,1770641717371,-1711.02,0.00052328,120]
[404875340,1770641717397,-880.16,0.00052328,120]
[404875341,1770641717424,-500.0,0.00052328,120]
[404875342,1770641717450,-546.05,0.00052328,120]
[404875343,1770641717476,-500.0,0.00052328,120]
[404875344,1770641717502,-2373.41,0.00052328,30]
[404875345,1770641717528,-802.85,0.00052328,120]
[404875346,1770641717555,-500.0,0.00052328,120]
[404875347,1770641717581,-550.28,0.00052328,120]
[404875348,1770641717613,-859.94,0.00052328,120]
[404875349,1770641717640,-500.0,0.00052328,120]
[404875350,1770641717667,-500.0,0.00052328,120]
[404875351,1770641717694,-620.66,0.00052328,120]
[404875352,1770641717721,-741.78,0.00052328,30]
[404875353,1770641717747,-1130.86,0.00052328,120]
[404875354,1770641717775,-1559.72,0.00052328,120]
[404875355,1770641717801,-1729.14,0.00052328,30]
[404875356,1770641717828,-500.0,0.00052328,120]
[404875357,1770641717855,-500.0,0.00052328,120]
[404875358,1770641717882,-587.87,0.00052328,120]
[404875359,1770641717911,-500.0,0.00052328,120]
[404875360,1770641717939,-1641.02,0.00052328,120]
[404875361,1770641717966,-2168.92,0.00052328,120]
[404875362,1770641717995,-7495.28,0.00052328,120]
[404875363,1770641718020,-13103.2,0.00052328,90]
[404875364,1770641718046,-1247.11,0.00052328,120]
[404875365,1770641718072,-5684.5,0.00052328,120]
[404875366,1770641718099,-500.0,0.00052328,120]
[404875367,1770641718126,-2989.03,0.00052328,120]
[404875368,1770641718152,-1565.16,0.00052328,120]
[404875369,1770641718178,-1143.37,0.00052328,120]
[404875370,1770641718205,-1831.42,0.00052328,120]
[404875371,1770641718233,-200.0,0.00052346,120]
[404875372,1770641718260,-746.61,0.00052361,120]
[404875373,1770641718288,-151.45455156,0.00052374,60]
[404875374,1770641718402,-151.40915451,0.00052401,60]
[404875375,1770641718434,-153.0,0.000525,120]
[404875376,1770641718461,-200.0,0.000526,120]
[404875377,1770641718488,-439.99685519,0.00052602,120]
[404875378,1770641718516,-797.77,0.00052602,120]
[404875379,1770641718541,-3252.37,0.00052602,120]
[404875380,1770641718565,-2953.2,0.00052602,120]
[404875381,1770641718590,-500.0,0.00052602,120]
[404875382,1770641718616,-1711.02,0.00052602,120]
[404875383,1770641718642,-880.16,0.00052602,120]
[404875384,1770641718668,-500.0,0.00052602,120]
[404875385,1770641718694,-546.05,0.00052602,120]
[404875386,1770641718719,-500.0,0.00052602,120]
[404875387,1770641718744,-2373.41,0.00052602,30]
[404875388,1770641718769,-802.85,0.00052602,120]
[404875389,1770641718796,-500.0,0.00052602,120]
[404875390,1770641718822,-550.28,0.00052602,120]
[404875391,1770641718849,-859.94,0.00052602,120]
[404875392,1770641718877,-500.0,0.00052602,120]
[404875393,1770641718904,-500.0,0.00052602,120]
[404875394,1770641718932,-620.66,0.00052602,120]
[404875395,1770641718959,-741.78,0.00052602,30]
[404875396,1770641718985,-1130.86,0.00052602,120]
[404875397,1770641719015,-1559.72,0.00052602,120]
[404875398,1770641719042,-1729.14,0.00052602,30]
[404875399,1770641719069,-500.0,0.00052602,120]
[404875400,1770641719097,-500.0,0.00052602,120]
[404875401,1770641719124,-587.87,0.00052602,120]
[404875402,1770641719151,-500.0,0.00052602,120]
[404875403,1770641719177,-1641.02,0.00052602,120]
[404875404,1770641719205,-2168.92,0.00052602,120]
[404875405,1770641719238,-7495.28,0.00052602,120]
[404875406,1770641719266,-13103.2,0.00052602,90]
[404875407,1770641719295,-1247.11,0.00052602,120]
[404875408,1770641719325,-5684.5,0.00052602,120]
[404875409,1770641719351,-307.58755803,0.00052602,120]
[404875410,1770641719378,-2989.03,0.00052602,120]
[404875411,1770641719406,-1565.16,0.00052602,120]
[404875412,1770641719434,-1143.37,0.00052602,120]
[404875413,1770641719460,-1831.42,0.00052602,120]
[404875414,1770641719486,-200.0,0.00052732,120]
[404875415,1770641719512,-797.77,0.00052876,120]
[404875416,1770641719538,-3252.37,0.00052876,120]
[404875417,1770641719564,-2953.2,0.00052876,120]
[404875418,1770641719590,-500.0,0.00052876,120]
[404875419,1770641719616,-1711.02,0.00052876,120]
[404875420,1770641719641,-880.16,0.00052876,120]
[404875421,1770641719666,-614.95097856,0.00052876,120]
[404875422,1770641719692,-546.05,0.00052876,120]
[404875423,1770641719717,-500.0,0.00052876,120]
[404875424,1770641719742,-2373.41,0.00052876,30]
[404875425,1770641719769,-565.79,0.00052876,42]
[404875426,1770641719796,-802.85,0.00052876,120]
[404875427,1770641719823,-500.0,0.00052876,120]
[404875428,1770641719849,-550.28,0.00052876,120]
[404875429,1770641719878,-859.94,0.00052876,120]
[404875430,1770641719904,-649.49114217,0.00052876,120]
[404875431,1770641719930,-500.0,0.00052876,120]
[404875432,1770641719956,-620.66,0.00052876,120]
[404875433,1770641719983,-741.78,0.00052876,30]
[404875434,1770641720008,-1130.86,0.00052876,120]
[404875435,1770641720035,-1559.72,0.00052876,120]
[404875436,1770641720060,-1729.14,0.00052876,30]
[404875437,1770641720086,-305.10754258,0.00052876,120]
[404875438,1770641720111,-500.0,0.00052876,120]
[404875439,1770641720137,-587.87,0.00052876,120]
[404875440,1770641720163,-500.0,0.00052876,120]
[404875441,1770641720189,-1641.02,0.00052876,120]
[404875442,1770641720218,-2168.92,0.00052876,120]
[404875443,1770641720324,-7495.28,0.00052876,120]
[404875444,1770641720366,-13103.2,0.00052876,90]
[404875445,1770641720392,-1247.11,0.00052876,120]
[404875446,1770641720420,-5684.5,0.00052876,120]
[404875447,1770641720446,-2989.03,0.00052876,120]
[404875448,1770641720473,-1565.16,0.00052876,120]
[404875449,1770641720501,-1143.37,0.00052876,120]
[404875450,1770641720528,-1831.42,0.00052876,120]
[404875451,1770641720555,-3525.50619218,0.000529,120]
[404875452,1770641720583,-2000.0,0.000529,120]
[404875453,1770641720611,-303.15,0.000529,120]
[404875454,1770641720639,-746.61,0.00052959,120]
[404875455,1770641720666,-706.52,0.00052959,120]
[404875456,1770641720692,-555.5959621,0.00052995,120]
[404875457,1770641720718,-191.0,0.00053,120]
[404875458,1770641720744,-30030.16492213,0.00053,120]
[404875459,1770641720771,-2000.0,0.00053,120]
[404875460,1770641720797,-433.46412,0.00053,120]
[404875461,1770641720823,-2645.94661136,0.00053013,120]
[404875462,1770641720850,-200.0,0.00053112,120]
[404875463,1770641720878,-797.77,0.0005315,120]
[404875464,1770641720905,-3252.37,0.0005315,120]
[404875465,1770641720932,-2953.2,0.0005315,120]
[404875466,1770641720960,-500.0,0.0005315,120]
[404875467,1770641720985,-1711.02,0.0005315,120]
[404875468,1770641721012,-880.16,0.0005315,120]
[404875469,1770641721038,-546.05,0.0005315,120]
[404875470,1770641721064,-326.96733883,0.0005315,120]
[404875471,1770641721090,-2373.41,0.0005315,30]
[404875472,1770641721118,-500.0,0.0005315,120]
[404875473,1770641721146,-802.85,0.0005315,120]
[404875474,1770641721172,-550.28,0.0005315,120]
[404875475,1770641721199,-859.94,0.0005315,120]
[404875476,1770641721229,-500.0,0.0005315,120]
[404875477,1770641721260,-620.66,0.0005315,120]
[404875478,1770641721288,-741.78,0.0005315,30]
[404875479,1770641721316,-1130.86,0.0005315,120]
[404875480,1770641721344,-1559.72,0.0005315,120]
[404875481,1770641721370,-1729.14,0.0005315,30]
[404875482,1770641721398,-212.68544639,0.0005315,120]
[404875483,1770641721424,-587.87,0.0005315,120]
[404875484,1770641721450,-500.0,0.0005315,120]
[404875485,1770641721476,-1641.02,0.0005315,120]
[404875486,1770641721505,-2168.92,0.0005315,120]
[404875487,1770641721537,-7495.28,0.0005315,120]
[404875488,1770641721565,-13103.2,0.0005315,90]
[404875489,1770641721592,-1247.11,0.0005315,120]
[404875490,1770641721621,-5684.5,0.0005315,120]
[404875491,1770641721648,-2989.03,0.0005315,120]
[404875492,1770641721680,-1565.16,0.0005315,120]
[404875493,1770641721714,-1143.37,0.0005315,120]
[404875494,1770641721744,-1831.42,0.0005315,120]
[404875495,1770641721770,-153.0,0.000533,120]
[404875496,1770641721797,-797.77,0.00053424,120]
[404875497,1770641721823,-3252.37,0.00053424,120]
[404875498,1770641721849,-2953.2,0.00053424,120]
[404875499,1770641721875,-500.0,0.00053424,120]
[404875500,1770641721900,-1711.02,0.00053424,120]
[404875501,1770641721926,-880.16,0.00053424,120]
[404875502,1770641721953,-546.05,0.00053424,120]
[404875503,1770641721980,-2373.41,0.00053424,30]
[404875504,1770641722006,-397.48076838,0.00053424,120]
[404875505,1770641722033,-802.85,0.00053424,120]
[404875506,1770641722061,-550.28,0.00053424,120]
[404875507,1770641722091,-859.94,0.00053424,120]
[404875508,1770641722119,-500.0,0.00053424,120]
[404875509,1770641722150,-620.66,0.00053424,120]
[404875510,1770641722259,-741.78,0.00053424,30]
[404875511,1770641722292,-1130.86,0.00053424,120]
[404875512,1770641722341,-1559.72,0.00053424,120]
[404875513,1770641722379,-1729.14,0.00053424,30]
[404875514,1770641722407,-587.87,0.00053424,120]
[404875515,1770641722434,-500.0,0.00053424,120]
[404875516,1770641722460,-1641.02,0.00053424,120]
[404875517,1770641722487,-2168.92,0.00053424,120]
[404875518,1770641722517,-7495.28,0.00053424,120]
[404875519,1770641722546,-13103.2,0.00053424,90]
[404875520,1770641722574,-1247.11,0.00053424,120]
[404875521,1770641722606,-5684.5,0.00053424,120]
[404875522,1770641722633,-2989.03,0.00053424,120]
[404875523,1770641722663,-1565.16,0.00053424,120]
[404875524,1770641722691,-1143.37,0.00053424,120]
[404875525,1770641722718,-1831.42,0.00053424,120]
[404875526,1770641722747,-206.1,0.00053425,120]
[404875527,1770641722775,-356.1729,0.000535,120]
[404875528,1770641722801,-309.30605,0.000535,120]
[404875529,1770641722830,-565.79,0.00053561,45]
[404875530,1770641722860,-30132.32609321,0.00053598,30]
[404875531,1770641722888,-1000.0,0.000536,60]
[404875532,1770641722915,-1000.0,0.000536,60]
[404875533,1770641722943,-797.77,0.00053698,120]
[404875534,1770641722972,-3252.37,0.00053698,120]
[404875535,1770641723002,-2953.2,0.00053698,120]
[404875536,1770641723030,-500.0,0.00053698,120]
[404875537,1770641723058,-1711.02,0.00053698,120]
[404875538,1770641723085,-880.16,0.00053698,120]
[404875539,1770641723112,-546.05,0.00053698,120]
[404875540,1770641723140,-2373.41,0.00053698,30]
[404875541,1770641723168,-802.85,0.00053698,120]
[404875542,1770641723197,-550.28,0.00053698,120]
[404875543,1770641723228,-859.94,0.00053698,120]
[404875544,1770641723258,-500.0,0.00053698,120]
[404875545,1770641723291,-620.66,0.00053698,120]
[404875546,1770641723322,-741.78,0.00053698,30]
[404875547,1770641723354,-1130.86,0.00053698,120]
[404875548,1770641723384,-1559.72,0.00053698,120]
[404875549,1770641723413,-1729.14,0.00053698,30]
[404875550,1770641723443,-587.87,0.00053698,120]
[404875551,1770641723471,-500.0,0.00053698,120]
[404875552,1770641723500,-1641.02,0.00053698,120]
[404875553,1770641723530,-2168.92,0.00053698,120]
[404875554,1770641723563,-7495.28,0.00053698,120]
[404875555,1770641723592,-13103.2,0.00053698,90]
[404875556,1770641723621,-1247.11,0.00053698,120]
[404875557,1770641723650,-5684.5,0.00053698,120]
[404875558,1770641723678,-2989.03,0.00053698,120]
[404875559,1770641723707,-1565.16,0.00053698,120]
[404875560,1770641723736,-1143.37,0.00053698,120]
[404875561,1770641723764,-1831.42,0.00053698,120]
[404875562,1770641723795,-9070.78,0.00053808,30]
[404875563,1770641723823,-1000.0,0.000539,60]
[404875564,1770641723851,-1000.0,0.000539,60]
[404875565,1770641723879,-797.77,0.00053972,120]
[404875566,1770641723908,-3252.37,0.00053972,120]
[404875567,1770641723936,-2953.2,0.00053972,120]
[404875568,1770641723963,-500.0,0.00053972,120]
[404875569,1770641723992,-1711.02,0.00053972,120]
[404875570,1770641724021,-880.16,0.00053972,120]
[404875571,1770641724048,-546.05,0.00053972,120]
[404875572,1770641724078,-2373.41,0.00053972,30]
[404875573,1770641724106,-802.85,0.00053972,120]
[404875574,1770641724137,-550.28,0.00053972,120]
[404875575,1770641724264,-859.94,0.00053972,120]
[404875576,1770641724298,-500.0,0.00053972,120]
[404875577,1770641724329,-620.66,0.00053972,120]
[404875578,1770641724359,-741.78,0.00053972,30]
[404875579,1770641724387,-1130.86,0.00053972,120]
[404875580,1770641724416,-1559.72,0.00053972,120]
[404875581,1770641724445,-1729.14,0.00053972,30]
[404875582,1770641724473,-587.87,0.00053972,120]
[404875583,1770641724500,-500.0,0.00053972,120]
[404875584,1770641724528,-1641.02,0.00053972,120]
[404875585,1770641724557,-2168.92,0.00053972,120]
[404875586,1770641724586,-7495.28,0.00053972,120]
[404875587,1770641724614,-13103.2,0.00053972,90]
[404875588,1770641724642,-1247.11,0.00053972,120]
[404875589,1770641724671,-5684.5,0.00053972,120]
[404875590,1770641724698,-2989.03,0.00053972,120]
[404875591,1770641724727,-1565.16,0.00053972,120]
[404875592,1770641724753,-1143.37,0.00053972,120]
[404875593,1770641724780,-1831.42,0.00053972,120]
[404875594,1770641724807,-169.49444268,0.00054,120]
[404875595,1770641724835,-300.0,0.00054,120]
[404875596,1770641724862,-2000.0,0.00054,120]
[404875597,1770641724890,-153.0,0.000541,120]